bitfinex/quotes_ETHUSD_20250726
["timestamp","ask_amount","ask_price","bid_price","bid_amount"]
[1753531958636,0.4685,3742.1,3741.3,3.0]
[1753531958637,0.4685,3742.0,3741.2,0.9034]
[1753531958940,10.821753,3741.9,3741.6,2.67259026]
[1753531959140,2.9645,3741.8,3741.6,2.67259026]
[1753531959443,0.4685,3741.7,3741.6,2.67259026]
[1753531961445,2.6296,3741.8,3741.7,2.67258198]
[1753531961623,2.90957,3741.8,3741.7,2.67258198]
[1753531964235,0.41357,3741.8,3741.7,2.67258198]
[1753531964434,2.6266,3741.8,3741.7,2.67258198]
[1753531965344,0.1336,3741.8,3741.7,2.67258198]
[1753531965522,13.821753,3742.2,3742.1,2.67227013]
[1753531965728,5.495,3742.2,3742.1,2.67227013]
[1753531965913,6.18757,3742.2,3742.1,2.67227013]
[1753531968140,3.69257,3742.2,3742.1,2.67227013]
[1753531968351,6.18557,3742.2,3742.1,2.67227013]
[1753531970217,3.69257,3742.2,3742.1,2.67227013]
[1753531970419,6.18557,3742.2,3742.1,2.67227013]
[1753531976060,6.18057,3742.2,3742.1,2.67227013]
[1753531976468,6.67677,3742.2,3742.1,2.67227013]
[1753531978866,6.67677,3742.2,3741.9,2.67243844]
[1753531979047,6.67677,3742.2,3742.1,2.6722963]
[1753531980457,11.600453,3742.1,3741.2,0.4563]
[1753531980653,10.821753,3741.9,3741.7,2.67254242]
[1753531980863,13.440353,3741.8,3741.7,2.67254242]
[1753531981184,10.821753,3741.7,3741.3,2.67284116]
[1753531981383,2.485,3741.6,3741.4,2.67279627]
[1753531981679,2.485,3741.6,3741.5,2.67272484]
[1753531983081,1.459937,3742.1,3741.7,2.67258198]
[1753531983289,10.821753,3741.9,3741.8,2.67251055]
[1753531984593,0.1336,3742.0,3741.9,2.67243913]
[1753531984793,2.6166,3742.0,3741.9,2.67243913]
[1753531985765,0.1336,3742.0,3741.9,2.67243913]
[1753531985965,2.6166,3742.0,3741.9,2.67243913]
[1753531987882,0.1336,3742.0,3741.9,2.67243913]
[1753531988104,2.6166,3742.0,3741.9,3.57923913]
[1753531991173,2.6166,3742.0,3741.9,2.67243913]
[1753531991677,2.6126,3742.0,3741.9,2.67243913]
[1753531994798,0.1336,3742.0,3741.9,2.67243913]
[1753531994973,2.6116,3742.0,3741.9,2.67243913]
[1753531995671,2.6136,3742.0,3741.9,2.67243913]
[1753531996805,10.821753,3741.9,3741.5,2.67272484]
[1753531996969,1.6913,3741.8,3740.8,0.4573]
[1753531997176,0.1336,3741.4,3741.2,2.67288251]
[1753531997474,2.9722,3741.3,3741.2,2.67288251]
[1753531998422,2.9304,3741.3,3740.9,2.67315351]
[1753531998700,2.9304,3741.3,3740.9,0.4494]
[1753531999002,0.1336,3741.1,3741.0,2.67308206]
[1753531999418,0.002,3742.0,3741.9,2.67243913]
[1753531999574,16.304753,3742.0,3741.9,2.67243913]
[1753532000603,13.823753,3742.0,3741.9,2.67243913]
[1753532000784,16.304753,3742.0,3741.9,2.67243913]
[1753532001229,18.5107683,3742.0,3741.9,2.67243913]
[1753532001598,18.5107683,3742.0,3741.8,2.67250259]
[1753532001840,0.4544,3741.9,3741.8,2.67250259]
[1753532002135,0.4544,3741.9,3741.7,2.67253868]
[1753532002304,0.4544,3741.9,3741.5,2.67272115]
[1753532002706,0.4544,3741.9,3741.7,2.67252632]
[1753532003327,10.821753,3741.7,3741.4,2.67275302]
[1753532003524,3.0,3741.4,3740.8,0.001]
[1753532003724,10.821753,3741.2,3740.8,2.67421389]
[1753532003926,0.4544,3741.1,3740.8,2.67421389]
[1753532004123,10.821753,3740.9,3740.8,0.001]
[1753532004541,1.7202253,3741.1,3740.8,2.67422497]
[1753532004722,2.48,3740.9,3740.8,2.67422497]
[1753532004907,2.481,3740.9,3740.8,2.67422497]
[1753532005621,10.821753,3741.0,3740.9,2.67315288]
[1753532005943,2.48,3741.0,3740.9,2.67315288]
[1753532006445,10.821753,3741.6,3740.9,1.22]
[1753532006624,10.821753,3741.4,3741.1,2.6729771]
[1753532006824,0.4544,3741.3,3741.1,2.6729771]
[1753532007026,2.486,3741.2,3741.1,2.6729771]
[1753532007226,13.307753,3741.2,3740.9,2.67315351]
[1753532007409,10.821753,3741.0,3740.8,0.001]
[1753532007614,2.487,3740.9,3740.8,0.001]
[1753532008311,2.487,3740.9,3740.8,2.67422497]
[1753532008547,2.488,3740.9,3740.8,1.6918]
[1753532008951,2.488,3740.9,3740.8,4.3650085]
[1753532011021,2.488,3740.9,3740.8,2.6742085]
[1753532011642,3.25,3740.9,3740.8,0.001]
[1753532011842,24.95900651,3740.9,3740.8,0.001]
[1753532012039,25.40610651,3740.9,3740.8,0.001]
[1753532013775,14.58435351,3740.9,3740.8,0.001]
[1753532013978,25.40610651,3740.9,3740.8,0.001]
[1753532015981,25.40810651,3740.9,3740.8,0.001]
[1753532016379,22.47100651,3740.9,3740.8,0.001]
[1753532016583,24.96100651,3740.9,3740.8,0.001]
[1753532016947,25.40810651,3740.9,3740.8,0.001]
[1753532017975,11.9132,3740.9,3740.8,0.001]
[1753532018179,22.287853,3740.9,3740.8,0.001]
[1753532018350,21.833453,3740.9,3740.8,0.001]
[1753532018678,22.287853,3740.9,3740.8,0.001]
[1753532018979,22.286853,3740.9,3740.8,0.001]
[1753532020173,11.4651,3740.9,3740.8,0.001]
[1753532020469,22.286853,3740.9,3740.8,0.001]
[1753532021781,24.96000651,3740.9,3740.8,0.001]
[1753532022661,25.40610651,3740.9,3740.8,0.001]
[1753532022852,24.95900651,3740.9,3740.8,0.001]
[1753532023774,22.285853,3740.9,3740.8,0.001]
[1753532023970,22.283853,3740.9,3740.8,0.001]
[1753532024180,24.95700651,3740.9,3740.8,0.001]
[1753532025097,25.40410651,3740.9,3740.8,0.001]
[1753532025278,22.91810651,3740.9,3740.8,0.001]
[1753532025476,25.40410651,3740.9,3740.8,0.001]
[1753532027066,22.91810651,3740.9,3740.8,0.001]
[1753532027280,24.95600651,3740.9,3740.8,0.001]
[1753532030585,25.39510651,3740.9,3740.8,0.001]
[1753532032289,24.95400651,3740.9,3740.8,0.001]
[1753532034911,24.95100651,3740.9,3740.8,0.001]
[1753532035577,21.273453,3740.9,3740.8,0.9124]
[1753532035922,20.965853,3740.9,3740.8,0.9124]
[1753532036215,21.515853,3740.9,3740.8,0.9124]
[1753532036720,21.515853,3740.9,3740.8,0.4322]
[1753532037213,24.64610651,3740.9,3740.8,0.001]
[1753532037579,27.34519827,3740.9,3740.8,0.001]
[1753532038311,26.88809827,3740.9,3740.8,0.001]
[1753532039299,27.78629827,3740.9,3740.8,0.001]
[1753532040114,27.34519827,3740.9,3740.8,0.001]
[1753532040684,27.78629827,3740.9,3740.8,0.001]
[1753532041214,27.93568418,3740.9,3740.8,0.001]
[1753532041923,27.49458418,3740.9,3740.8,0.001]
[1753532042299,27.49457838,3740.9,3740.8,0.001]
[1753532043397,27.78629827,3740.9,3740.8,0.001]
[1753532043608,27.93566984,3740.9,3740.8,0.001]
[1753532044283,27.49456984,3740.9,3740.8,0.001]
[1753532045819,27.34519827,3740.9,3740.8,0.001]
[1753532046015,27.49458115,3740.9,3740.8,0.001]
[1753532046387,41.99158115,3740.9,3740.8,0.001]
[1753532046715,31.16982815,3740.9,3740.8,0.001]
[1753532046922,41.99158115,3740.9,3740.8,0.001]
[1753532048915,41.84219827,3740.9,3740.8,0.001]
[1753532050296,41.99157159,3740.9,3740.8,0.001]
[1753532050494,41.38509827,3740.9,3740.8,0.001]
[1753532052031,41.38209827,3740.9,3740.8,0.9124]
[1753532052220,26.88209827,3740.9,3740.8,0.9124]
[1753532052531,26.88209827,3740.9,3740.8,0.001]
[1753532053729,20.92284476,3740.9,3740.8,0.001]
[1753532053932,20.697753,3740.9,3740.8,0.9124]
[1753532055136,23.37090651,3740.9,3740.8,0.9124]
[1753532055438,20.697753,3740.9,3740.8,0.4322]
[1753532055844,23.37090651,3740.9,3740.8,0.9124]
[1753532056139,23.37090651,3740.9,3740.8,0.001]
[1753532056433,26.00262982,3740.9,3740.8,0.001]
[1753532056637,23.32947631,3740.9,3740.8,0.001]
[1753532057509,12.50772331,3740.9,3740.8,0.001]
[1753532057741,23.32947631,3740.9,3740.8,0.001]
[1753532058105,20.85547631,3740.9,3740.8,0.001]
[1753532058300,23.32747631,3740.9,3740.8,0.9382]
[1753532059102,20.695753,3740.9,3740.8,0.9382]
[1753532060502,20.695753,3740.9,3740.8,0.4518]
[1753532061043,20.695753,3740.9,3740.8,0.001]
[1753532061647,18.223753,3740.9,3740.8,0.9382]
[1753532061853,20.695753,3740.9,3740.8,0.9382]
[1753532063235,18.223753,3740.9,3740.8,0.9382]
[1753532063451,20.695753,3740.9,3740.8,0.9382]
[1753532063621,18.223753,3740.9,3740.8,0.9382]
[1753532063822,17.673753,3740.9,3740.8,4.40722497]
[1753532064034,20.145753,3740.9,3740.8,4.40722497]
[1753532065549,9.324,3740.9,3740.8,4.40722497]
[1753532068079,9.324,3740.9,3740.8,1.734]
[1753532068273,9.324,3740.9,3740.8,4.40722497]
[1753532068971,3.852,3740.9,3740.8,4.40722497]
[1753532069275,6.324,3740.9,3740.8,4.40722497]
[1753532069980,10.821753,3741.5,3741.4,2.6727522]
[1753532070140,16.293753,3741.5,3741.4,2.6727522]
[1753532070340,16.293753,3741.5,3741.4,3.6099522]
[1753532071681,13.293753,3741.5,3741.4,4.4095522]
[1753532071841,13.292753,3741.5,3741.4,4.4095522]
[1753532072039,10.821753,3741.5,3741.4,4.4095522]
[1753532072272,13.292753,3741.5,3741.4,4.4095522]
[1753532073497,13.292753,3741.5,3740.8,0.001]
[1753532073498,10.821753,3741.2,3740.8,0.001]
[1753532073658,10.821753,3741.0,3740.8,0.001]
[1753532073988,2.473,3740.9,3740.8,0.001]
[1753532074191,2.473,3740.9,3740.8,0.4518]
[1753532074375,2.473,3740.9,3740.8,0.9382]
[1753532074740,2.473,3740.9,3740.8,3.61142497]
[1753532075498,2.473,3740.9,3740.8,0.9382]
[1753532075792,2.473,3740.9,3740.8,3.61142497]
[1753532075942,2.473,3740.9,3740.8,0.9382]
[1753532078024,2.473,3740.9,3740.8,0.001]
[1753532078202,17.22020651,3740.9,3740.8,0.001]
[1753532078568,20.22020651,3740.9,3740.8,0.001]
[1753532078803,20.66540651,3740.9,3740.8,0.001]
[1753532079184,24.51840651,3740.9,3740.8,0.001]
[1753532079988,24.65200651,3740.9,3740.8,0.001]
[1753532081086,24.20680651,3740.9,3740.8,0.001]
[1753532082112,13.38505351,3740.9,3740.8,0.001]
[1753532082316,24.20680651,3740.9,3740.8,0.001]
[1753532082527,21.73380651,3740.9,3740.8,0.001]
[1753532082732,21.27880651,3740.9,3740.8,0.001]
[1753532082942,21.03150651,3740.9,3740.8,0.001]
[1753532083238,10.0076,3740.9,3740.8,0.9382]
[1753532083401,20.279353,3740.9,3740.8,0.9382]
[1753532083584,17.808353,3740.9,3740.8,0.9382]
[1753532083788,20.279353,3740.9,3740.8,0.9382]
[1753532084033,9.4576,3740.9,3740.8,0.9382]
[1753532084234,17.808353,3740.9,3740.8,0.9382]
[1753532084434,20.279353,3740.9,3740.8,0.9382]
[1753532084738,20.279353,3740.9,3740.8,0.001]
[1753532087301,22.80696988,3740.9,3740.8,0.001]
[1753532087490,25.48012339,3740.9,3740.8,0.001]
[1753532087690,25.02512339,3740.9,3740.8,0.001]
[1753532088313,22.35196988,3740.9,3740.8,0.001]
[1753532089499,20.829353,3740.9,3740.8,0.001]
[1753532089821,20.829353,3740.9,3740.8,0.9643]
[1753532090933,17.808353,3740.9,3740.8,0.9643]
[1753532091232,20.279353,3740.9,3740.8,0.9643]
[1753532091530,6.9866,3740.9,3740.8,3.63752497]
[1753532091732,6.4576,3740.9,3740.8,3.63752497]
[1753532091923,6.4576,3740.9,3740.8,0.9643]
[1753532092831,17.279353,3740.9,3740.8,0.9643]
[1753532093735,17.279353,3740.9,3740.8,0.001]
[1753532094508,17.279353,3740.9,3740.8,0.9643]
[1753532094938,14.808353,3740.9,3740.8,0.9643]
[1753532095140,17.279353,3740.9,3740.8,0.9643]
[1753532095945,17.279353,3740.9,3740.8,3.63752497]
[1753532096348,6.4576,3740.9,3740.8,3.63752497]
[1753532096648,3.9866,3740.9,3740.8,4.3496328]
[1753532096822,6.4576,3740.9,3740.8,4.3496328]
[1753532101247,3.9866,3740.9,3740.8,4.3496328]
[1753532101448,6.4576,3740.9,3740.8,4.3496328]
[1753532102043,0.002,3741.6,3741.1,2.67296631]
[1753532102231,0.1336,3741.1,3741.0,2.67308206]
[1753532102548,2.6046,3741.1,3741.0,4.41966566]
[1753532103043,0.1336,3741.1,3741.0,5.24396566]
[1753532103250,2.6046,3741.1,3741.0,5.24396566]
[1753532106749,0.1336,3741.1,3741.0,5.24396566]
[1753532106912,0.002,3741.6,3741.5,3.45362484]
[1753532107347,2.6066,3741.6,3741.5,5.02957383]
[1753532107517,2.6066,3741.6,3741.5,4.41692484]
[1753532108545,2.473,3741.6,3741.5,4.41692484]
[1753532109957,2.472,3741.6,3741.5,4.41692484]
[1753532111373,0.002,3741.6,3741.5,4.41692484]
[1753532111650,2.472,3741.6,3741.5,4.41692484]
[1753532111856,2.472,3741.6,3741.5,5.12590383]
[1753532112035,0.002,3741.6,3741.5,5.12590383]
[1753532112244,2.472,3741.6,3741.5,5.12590383]
[1753532113542,0.002,3741.6,3741.5,5.12590383]
[1753532113749,2.472,3741.6,3741.5,5.12590383]
[1753532114055,2.472,3741.6,3741.5,4.63680383]
[1753532114354,2.472,3741.6,3741.5,4.41692484]
[1753532118356,0.002,3741.6,3741.5,4.41692484]
[1753532118567,2.472,3741.6,3741.5,3.45362484]
[1753532118718,2.472,3741.6,3741.5,3.90832484]
[1753532118924,2.472,3741.6,3741.5,4.36352484]
[1753532121156,0.002,3741.6,3741.5,4.36352484]
[1753532121356,2.472,3741.6,3741.5,4.36352484]
[1753532121562,2.472,3741.6,3741.5,3.90832484]
[1753532121732,2.472,3741.6,3741.5,3.45362484]
[1753532122059,0.002,3741.6,3741.5,4.36352484]
[1753532122262,2.472,3741.6,3741.5,4.36352484]
[1753532123569,0.002,3741.6,3741.5,4.36352484]
[1753532123770,2.472,3741.6,3741.5,4.36352484]
[1753532124268,0.4939,3741.9,3741.5,4.36352484]
[1753532124269,0.002,3744.7,3741.6,15.034407]
[1753532124489,0.002,3744.7,3744.6,3.4616122]
[1753532124642,0.002,3744.7,3744.6,3.48831732]
[1753532124835,13.934653,3744.7,3744.1,0.7911]
[1753532125057,0.4939,3744.6,3744.2,2.6707975]
[1753532125365,0.4939,3744.6,3744.3,2.67072357]
[1753532125366,4.8028,3744.6,3744.3,2.67072357]
[1753532125568,4.99138069,3744.6,3743.8,2.67108285]
[1753532125739,4.99138069,3744.6,3743.7,0.8171]
[1753532125740,2.78096675,3744.5,3743.7,0.8171]
[1753532125940,0.4939,3744.4,3743.7,0.8171]
[1753532126838,10.821753,3744.3,3743.5,0.4547]
[1753532127033,2.67100417,3744.0,3743.1,0.9099]
[1753532127241,2.67103233,3743.9,3743.2,0.9099]
[1753532128168,0.4939,3744.0,3743.0,0.19768623]
[1753532128169,2.67114896,3743.8,3743.0,0.19768623]
[1753532128469,0.4569,3744.4,3741.0,0.7832836]
[1753532128470,0.82,3743.6,3742.5,1.727]
[1753532128658,2.67181773,3742.8,3742.5,0.8171]
[1753532128855,2.63,3742.7,3742.2,0.9099]
[1753532129071,2.63,3742.7,3742.1,0.8171]
[1753532129274,2.63,3742.7,3742.3,0.9099]
[1753532129572,2.63,3742.7,3742.4,0.9099]
[1753532129868,2.629,3742.6,3742.4,0.9099]
[1753532130475,2.629,3742.6,3742.4,3.58197381]
[1753532130854,2.627,3742.5,3742.4,3.37921037]
[1753532131054,2.627,3742.5,3742.3,2.67214226]
[1753532131571,2.627,3742.5,3742.1,1.02263029]
[1753532131572,2.627,3742.5,3742.4,3.58198208]
[1753532132166,0.4939,3743.0,3742.4,3.58198208]
[1753532132167,1e-08,3745.2,3744.6,2.6705122]
[1753532132367,1e-08,3745.2,3744.6,3.23132965]
[1753532132568,1e-08,3745.2,3744.6,1.4025115]
[1753532132755,2.707,3744.9,3744.6,2.6705122]
[1753532132954,10.821753,3744.6,3743.5,0.821]
[1753532133156,10.821753,3744.4,3743.5,0.821]
[1753532133360,2.715,3744.3,3743.6,0.9099]
[1753532133893,10.821753,3744.4,3744.1,2.67083916]
[1753532134050,2.715,3744.2,3744.1,2.67083916]
[1753532134447,10.955353,3744.4,3744.2,2.67078613]
[1753532134673,2.713,3744.3,3744.2,2.67078613]
[1753532135569,10.821753,3744.2,3743.9,0.1336]
[1753532135751,10.821753,3744.1,3743.6,2.67122555]
[1753532135951,0.1336,3744.1,3743.9,2.67100319]
[1753532136181,0.1336,3744.1,3743.8,2.6710807]
[1753532136182,0.1336,3743.9,3743.8,2.6710807]
[1753532136680,0.6275,3743.9,3743.8,2.6710807]
[1753532137548,0.1336,3743.9,3743.8,2.6710807]
[1753532138195,0.1336,3743.9,3743.7,2.67115134]
[1753532138488,0.1336,3743.9,3743.6,2.67121266]
[1753532138672,0.6275,3743.9,3743.6,2.67121266]
[1753532138877,0.6275,3743.9,3743.7,2.67113449]
[1753532139293,0.6275,3743.9,3743.8,2.67108285]
[1753532139589,0.1336,3743.9,3743.8,2.67108285]
[1753532139792,2.8366,3743.9,3743.8,2.67108285]
[1753532140790,2.8366,3743.9,3743.7,2.67114821]
[1753532141091,2.8366,3743.9,3743.7,2.67114274]
[1753532141288,0.1336,3743.9,3743.8,2.67108285]
[1753532141494,2.8336,3743.9,3743.8,3.58098285]
[1753532143196,0.1336,3743.9,3743.8,2.67108285]
[1753532143495,2.8296,3743.9,3743.8,2.67108285]
[1753532143869,2.8296,3743.9,3743.7,2.67113576]
[1753532145399,2.8296,3743.9,3743.8,2.67108285]
[1753532147098,2.8166,3743.9,3743.8,2.67108285]
[1753532148100,0.1336,3743.9,3743.8,2.67108285]
[1753532148303,0.002,3744.7,3744.1,2.67085376]
[1753532148516,0.1336,3744.0,3743.9,2.67094517]
[1753532148696,3.2932,3744.0,3743.9,2.67094517]
[1753532149384,2.8126,3744.0,3743.9,2.67094517]
[1753532150076,2.8126,3744.0,3743.9,3.61464517]
[1753532150278,2.8126,3744.0,3743.9,3.14244517]
[1753532150801,2.8126,3744.0,3743.9,2.67094517]
[1753532151012,0.1336,3744.0,3743.9,2.67094517]
[1753532151176,2.8086,3744.0,3743.9,2.67094517]
[1753532151709,2.8076,3744.0,3743.9,2.67094517]
[1753532151868,2.8076,3744.0,3743.9,3.61464517]
[1753532152809,10.821753,3744.6,3744.3,2.67067309]
[1753532153011,10.821753,3744.5,3744.4,2.67065484]
[1753532153208,2.8036,3744.5,3744.4,2.67065484]
[1753532153413,2.8036,3744.5,3744.3,2.67071425]
[1753532153574,2.67,3744.5,3744.2,2.67079724]
[1753532153770,3.1506,3744.4,3744.2,2.67079724]
[1753532153971,0.1336,3744.3,3744.2,2.67079724]
[1753532154209,0.6142,3744.3,3744.2,2.67079724]
[1753532155707,2.8026,3744.3,3744.2,2.67079724]
[1753532156439,2.7966,3744.3,3744.2,2.67079724]
[1753532157322,10.821753,3744.6,3744.5,2.67052947]
[1753532157530,17.332753,3744.6,3744.5,2.67052947]
[1753532157720,6.6446,3744.6,3744.5,2.67052947]
[1753532158899,6.6446,3744.6,3744.3,2.6707126]
[1753532159224,6.511,3744.6,3744.4,0.9437]
[1753532159425,6.511,3744.6,3744.4,3.61433605]
[1753532159588,2.7946,3744.5,3744.4,3.61435484]
[1753532159784,2.7946,3744.5,3744.4,0.9437]
[1753532160233,2.7906,3744.5,3744.4,0.9437]
[1753532160433,2.7906,3744.5,3743.9,0.8146]
[1753532160651,11.302353,3744.4,3743.7,2.67108776]
[1753532160804,0.1336,3744.0,3743.6,0.7664]
[1753532161012,2.655,3743.9,3743.7,2.6711542]
[1753532161197,2.655,3743.9,3743.7,3.6148542]
[1753532161531,2.655,3743.9,3743.8,2.67108285]
[1753532165150,4.6525,3744.6,3743.8,0.9437]
[1753532165331,4.6525,3744.6,3743.7,0.1336]
[1753532165332,0.1336,3744.2,3743.7,0.1336]
[1753532165641,0.1336,3743.9,3743.7,2.6711542]
[1753532165804,2.646,3743.8,3743.7,2.6711542]
[1753532166514,2.645,3743.8,3743.7,2.6711542]
[1753532167433,0.6142,3743.9,3743.8,2.67108285]
[1753532167640,2.7766,3743.9,3743.8,2.67108285]
[1753532168739,2.7766,3743.9,3743.7,2.67113526]
[1753532169036,2.7766,3743.9,3743.8,2.67108285]
[1753532169205,2.7766,3743.9,3743.7,2.6711405]
[1753532169741,2.7786,3743.9,3743.8,2.67108285]
[1753532169905,2.7786,3743.9,3743.7,2.67113302]
[1753532170808,2.7786,3743.9,3743.8,2.67108285]
[1753532171231,2.7726,3743.9,3743.8,3.61478285]
[1753532171406,0.1356,3743.9,3743.8,3.61478285]
[1753532171911,2.7706,3743.9,3743.8,3.14258285]
[1753532172143,2.7706,3743.9,3743.8,2.67108285]
[1753532172442,2.7706,3743.9,3743.7,2.67113133]
[1753532172645,2.7706,3743.9,3743.8,2.67108285]
[1753532174248,2.7706,3743.9,3743.7,3.61483188]
[1753532174423,2.7706,3743.9,3743.8,2.67108285]
[1753532175457,2.7706,3743.9,3743.7,3.1433327]
[1753532175626,0.1356,3743.9,3743.7,3.6148327]
[1753532175923,2.63,3743.8,3743.7,3.6148327]
[1753532176860,2.63,3743.8,3743.7,3.1426327]
[1753532177036,2.63,3743.8,3743.7,2.6711327]
[1753532177650,0.1356,3743.9,3743.8,2.67108285]
[1753532177960,2.7596,3743.9,3743.6,2.67117449]
[1753532178160,0.4687,3743.8,3743.6,2.67117449]
[1753532178332,0.6043,3743.9,3743.7,2.6711542]
[1753532178661,2.623,3743.8,3743.7,2.6711542]
[1753532178827,2.623,3743.8,3743.5,0.9113]
[1753532179337,2.623,3743.8,3743.6,2.67116467]
[1753532179538,3.0917,3743.8,3743.6,2.67116467]
[1753532179833,2.623,3743.8,3743.7,2.6711542]
[1753532180048,0.1356,3743.9,3743.8,2.67108285]
[1753532180268,3.2243,3743.9,3743.5,2.67124773]
[1753532180555,3.2243,3743.9,3743.7,2.67114676]
[1753532180754,0.6043,3743.9,3743.5,0.4415]
[1753532180921,2.619,3743.8,3743.5,0.9113]
[1753532181121,2.619,3743.7,3743.6,2.67117487]
[1753532181557,0.1356,3743.9,3743.8,2.67108285]
[1753532181765,2.618,3743.7,3743.4,2.80489755]
[1753532182074,2.618,3743.7,3742.7,2.87647024]
[1753532182075,0.1336,3743.5,3742.5,1.7283]
[1753532182231,1.7096,3743.4,3742.8,2.67174051]
[1753532182427,1.7096,3743.4,3742.6,2.67193929]
[1753532182428,0.1336,3742.9,3742.6,2.67193929]
[1753532182630,2.618,3742.8,3742.5,3.1134422]
[1753532182844,2.618,3742.8,3742.6,2.67187952]
[1753532183062,3.0867,3742.8,3742.3,0.6034]
[1753532183271,3.0867,3742.8,3742.4,2.85826954]
[1753532183469,3.0867,3742.8,3742.4,3.76956954]
[1753532183868,2.618,3742.8,3742.7,2.6718679]
[1753532184179,0.8059,3743.4,3743.1,2.67153797]
[1753532184371,2.615,3743.3,3743.2,2.671511]
[1753532184837,2.7486,3743.3,3743.2,2.671511]
[1753532185770,2.7486,3743.3,3743.1,2.67156819]
[1753532185972,2.7486,3743.2,3743.1,2.67156819]
[1753532186178,3.2173,3743.2,3743.1,2.67156819]
[1753532188180,2.7486,3743.2,3743.1,2.67156819]
[1753532188783,3.2173,3743.2,3743.1,2.67156819]
[1753532189884,0.6023,3743.2,3743.1,2.67156819]
[1753532190081,3.2123,3743.2,3743.1,2.67156819]
[1753532190378,2.7436,3743.2,3743.1,2.67156819]
[1753532191285,2.7396,3743.2,3743.1,2.67156819]
[1753532191882,2.7396,3743.2,3742.9,2.67172377]
[1753532191883,2.7396,3743.2,3742.9,2.67172513]
[1753532192082,10.955353,3743.0,3742.7,2.67182594]
[1753532192268,0.1336,3742.8,3742.7,2.67182594]
[1753532196687,2.7306,3742.8,3742.7,3.58312594]
[1753532197178,2.7296,3742.8,3742.7,3.58312594]
[1753532199985,0.1336,3742.8,3742.7,3.58312594]
[1753532200191,2.7286,3742.8,3742.7,3.58312594]
[1753532202588,0.1336,3742.8,3742.7,3.58312594]
[1753532202889,2.7216,3742.8,3742.7,3.58312594]
[1753532204990,0.1336,3742.8,3742.7,3.58312594]
[1753532205196,2.7206,3742.8,3742.7,3.58312594]
[1753532206390,2.7176,3742.8,3742.7,3.58312594]
[1753532207059,2.7176,3742.8,3742.7,3.11332594]
[1753532208490,2.7126,3742.8,3742.7,3.57052594]
[1753532209298,2.7126,3742.8,3742.7,3.52052594]
[1753532210593,2.7126,3742.8,3742.7,2.62182594]
[1753532212396,3.853,3743.2,3743.1,2.67158237]
[1753532212706,6.429,3743.2,3743.1,3.56748237]
[1753532212918,3.9866,3743.2,3743.1,3.56748237]
[1753532213075,6.426,3743.2,3743.1,3.56748237]
[1753532214474,0.002,3743.2,3743.1,3.56748237]
[1753532214674,2.574,3743.2,3743.1,3.56748237]
[1753532216098,2.573,3743.2,3743.1,3.56748237]
[1753532217196,2.57,3743.2,3743.1,3.56748237]
[1753532218406,2.569,3743.2,3743.1,3.11028237]
[1753532219430,0.002,3743.2,3743.1,2.67158237]
[1753532219593,2.568,3743.2,3743.1,2.67158237]
[1753532221522,2.564,3743.2,3743.1,3.56748237]
[1753532221692,2.564,3743.2,3743.1,3.11028237]
[1753532222027,2.564,3743.2,3743.1,2.67158237]
[1753532222523,2.564,3743.2,3743.1,3.56748237]
[1753532223483,2.564,3743.2,3743.1,2.67158237]
[1753532223897,2.562,3743.2,3743.1,2.67158237]
[1753532225724,2.561,3743.2,3743.1,2.67158237]
[1753532225923,2.559,3743.2,3743.1,2.67158237]
[1753532226940,0.002,3744.0,3743.6,2.67117307]
[1753532227090,10.821753,3743.7,3743.4,2.67131277]
[1753532227427,0.4657,3743.6,3743.5,2.67128076]
[1753532227790,0.4657,3743.6,3742.9,0.7991]
[1753532228000,0.911,3743.6,3743.3,2.67143843]
[1753532228402,0.4453,3743.6,3743.3,2.67143843]
[1753532228689,0.4657,3743.5,3743.3,2.67143843]
[1753532228901,2.558,3743.4,3743.3,2.67143843]
[1753532229103,3.0237,3743.4,3743.2,2.67150964]
[1753532229418,3.0237,3743.4,3742.8,0.8959]
[1753532229419,2.558,3743.4,3743.3,2.67143963]
[1753532229823,3.0237,3743.4,3743.3,2.67143963]
[1753532230029,2.558,3743.4,3743.3,2.67143963]
[1753532231122,1.2882,3743.7,3743.4,2.67133729]
[1753532231327,0.4657,3743.6,3743.4,2.67133729]
[1753532231559,6.8697,3743.6,3743.5,2.67129691]
[1753532232029,6.404,3743.6,3743.5,2.67129691]
[1753532232395,6.8697,3743.6,3743.4,2.67136051]
[1753532232591,6.404,3743.6,3743.4,2.67136051]
[1753532232800,0.4657,3743.5,3743.3,2.67143268]
[1753532233205,2.554,3743.4,3743.3,2.67143268]
[1753532233400,3.852,3743.6,3743.4,2.67136827]
[1753532233401,0.002,3743.6,3743.4,2.67136827]
[1753532233606,2.552,3743.5,3743.4,2.67136827]
[1753532233942,2.552,3743.5,3742.7,2.67182017]
[1753532233943,10.821753,3743.2,3742.7,2.6718661]
[1753532234138,0.7515,3743.3,3742.4,3.5679508]
[1753532234139,2.551,3743.1,3742.4,3.5679508]
[1753532234302,2.9963,3743.1,3742.4,3.5679508]
[1753532234509,0.4657,3743.0,3742.4,3.5679508]
[1753532234709,0.4657,3743.0,3742.6,2.67191437]
[1753532235134,0.4657,3743.0,3742.7,2.67184567]
[1753532235714,2.9963,3743.1,3742.7,2.67184567]
[1753532236039,0.4657,3742.9,3742.7,2.67184567]
[1753532236342,0.4657,3742.9,3742.6,2.67192878]
[1753532236554,0.4657,3742.8,3742.7,2.67186294]
[1753532236745,3.0167,3743.1,3742.8,2.67173931]
[1753532236950,0.1336,3742.9,3742.8,2.67173931]
[1753532238947,0.1336,3742.9,3742.7,2.67185042]
[1753532239739,0.1336,3742.9,3742.6,3.12913295]
[1753532240848,0.1336,3742.9,3742.7,2.67185103]
[1753532241443,0.1336,3742.9,3742.7,3.59395103]